bitfinex/quotes_SOLUSD_20251024
["timestamp","ask_amount","ask_price","bid_price","bid_amount"]
[1761316928360,37.5,190.52,190.5,2.28757094]
[1761316928760,37.5,190.52,190.5,2.98757094]
[1761316928957,0.66,190.56,190.5,2.98757094]
[1761316929159,37.5,190.58,190.54,2.28757094]
[1761316929365,37.5,190.58,190.55,2.28757094]
[1761316929366,38.16,190.58,190.55,2.28757094]
[1761316929873,38.16,190.58,190.54,2.28757094]
[1761316930250,38.16,190.58,190.55,5.24796641]
[1761316930450,0.66,190.58,190.55,5.24796641]
[1761316930659,37.5,190.57,190.55,5.24796641]
[1761316931879,37.5,190.57,190.54,5.24823781]
[1761316932066,38.16,190.56,190.51,7.53663923]
[1761316932267,37.5,190.55,190.51,5.24906829]
[1761316932490,38.16,190.55,190.51,5.24906829]
[1761316932654,38.16,190.55,190.49,38.29108253]
[1761316932655,0.66,190.54,190.49,5.24960172]
[1761316933866,0.66,190.54,190.49,7.53717266]
[1761316934658,0.66,190.54,190.49,11.20434604]
[1761316934861,22.88,190.59,190.53,5.25474432]
[1761316935071,37.5,190.58,190.55,5.25474432]
[1761316935457,37.5,190.58,190.54,5.25474432]
[1761316935889,37.5,190.58,190.54,5.95474432]
[1761316936561,0.66,190.6,190.56,5.25474432]
[1761316936781,37.5,190.59,190.56,5.24769101]
[1761316937156,38.16,190.59,190.56,5.24769101]
[1761316938186,0.66,190.58,190.53,13.12102952]
[1761316938367,37.5,190.57,190.54,5.25474432]
[1761316938567,37.48,190.57,190.54,19.06884642]
[1761316938771,37.48,190.57,190.55,5.25474432]
[1761316938985,37.48,190.57,190.56,5.24769101]
[1761316939988,0.7,190.59,190.56,5.24769101]
[1761316939989,0.7,190.64,190.56,24.31166286]
[1761316940159,103.3,190.67,190.6,5.25474432]
[1761316940362,0.7,190.65,190.59,5.25474432]
[1761316940692,0.7,190.65,190.57,0.69]
[1761316940872,5.95474432,190.65,190.58,5.2471403]
[1761316941372,0.7,190.64,190.58,5.2471403]
[1761316941565,0.7,190.64,190.58,5.25474432]
[1761316942387,5.25474432,190.63,190.57,5.24736578]
[1761316942571,42.73474432,190.62,190.57,5.24736578]
[1761316942776,43.43474432,190.62,190.57,5.24736578]
[1761316942977,5.25474432,190.6,190.55,5.24796641]
[1761316943468,0.7,190.59,190.55,5.24796641]
[1761316943784,37.48,190.58,190.55,5.24796641]
[1761316944180,0.7,190.57,190.55,5.24796641]
[1761316944381,5.95474432,190.57,190.53,5.24827531]
[1761316944575,0.7,190.57,190.53,5.24827531]
[1761316945180,37.48,190.58,190.53,5.93827531]
[1761316945387,38.18,190.58,190.53,5.93827531]
[1761316947091,0.7,190.57,190.53,5.24827531]
[1761316947274,8.68254288,190.57,190.53,5.24827531]
[1761316947665,0.7,190.57,190.53,5.24827531]
[1761316949186,8.68254288,190.57,190.52,5.24879277]
[1761316949395,8.68254288,190.57,190.52,5.93879277]
[1761316950304,0.7,190.56,190.52,5.24879277]
[1761316950713,13.93023646,190.56,190.5,7.98254288]
[1761316950914,7.98254288,190.54,190.49,5.2496194]
[1761316951213,45.44254288,190.53,190.49,5.2496194]
[1761316951571,38.16,190.53,190.49,5.2496194]
[1761316951804,7.98254288,190.54,190.49,5.9396194]
[1761316952108,37.46,190.53,190.49,5.9396194]
[1761316952306,82.03463622,190.7,190.52,7.98254288]
[1761316952307,1.99999999,190.64,190.52,7.98254288]
[1761316952605,37.46,190.61,190.59,7.98254288]
[1761316952903,37.46,190.63,190.59,7.98254288]
[1761316953074,5.24466355,190.67,190.51,71.21647521]
[1761316953075,8.68254288,190.67,190.61,7.98254288]
[1761316953274,0.7,190.67,190.62,7.98254288]
[1761316953492,37.46,190.66,190.62,7.98254288]
[1761316954002,38.16,190.66,190.62,13.22839434]
[1761316954468,0.7,190.69,190.64,7.98254288]
[1761316954670,0.7,190.69,190.65,7.98254288]
[1761316954671,37.46,190.68,190.65,7.98254288]
[1761316954883,37.46,190.67,190.65,7.98254288]
[1761316955173,37.46,190.67,190.66,7.98254288]
[1761316955379,15.70156634,190.76,190.66,8.69254288]
[1761316955380,5.24275663,190.74,190.66,8.69254288]
[1761316955683,38.16,190.73,190.67,7.98254288]
[1761316955889,38.16,190.73,190.68,13.22667757]
[1761316956192,8.46231422,190.8,190.7,7.98254288]
[1761316956193,37.46,190.72,190.7,7.98254288]
[1761316956583,0.7,190.77,190.71,7.98254288]
[1761316956790,37.44,190.76,190.71,8.69254288]
[1761316957090,38.14,190.76,190.71,0.71]
[1761316957293,0.7,190.8,190.74,7.98254288]
[1761316957480,46.12254288,190.79,190.72,7.98254288]
[1761316957682,7.98254288,190.78,190.72,7.98254288]
[1761316957885,13.22448464,190.77,190.7,13.22638136]
[1761316958185,13.92448464,190.77,190.71,7.98254288]
[1761316958388,13.22448464,190.77,190.71,7.98254288]
[1761316958578,0.7,190.76,190.71,7.98254288]
[1761316958780,37.44,190.75,190.71,7.98254288]
[1761316959095,37.44,190.75,190.71,8.69254288]
[1761316960091,37.44,190.75,190.72,5.24328859]
[1761316960604,0.7,190.74,190.7,13.22614213]
[1761316960801,7.98254288,190.72,190.64,0.71]
[1761316961009,7.98254288,190.72,190.57,7.98254288]
[1761316961010,7.98254288,190.69,190.63,7.98254288]
[1761316961301,7.98254288,190.69,190.62,8.69254288]
[1761316961500,7.98254288,190.69,190.63,7.98254288]
[1761316961697,8.68254288,190.7,190.63,8.69254288]
[1761316962401,8.68254288,190.7,190.64,5.24548887]
[1761316962699,0.7,190.7,190.64,13.93803175]
[1761316963302,37.44,190.71,190.65,7.98254288]
[1761316963484,37.42,190.7,190.67,7.98254288]
[1761316963686,7.98254288,190.73,190.67,7.98254288]
[1761316963896,37.42,190.72,190.67,7.98254288]
[1761316964092,37.42,190.71,190.66,7.98254288]
[1761316964298,37.42,190.71,190.67,0.71]
[1761316964515,7.98254288,190.72,190.67,0.71]
[1761316964682,37.42,190.71,190.67,0.71]
[1761316965311,0.7,190.72,190.68,5.2443885]
[1761316965520,37.42,190.7,190.68,5.2443885]
[1761316965726,37.42,190.71,190.68,5.2443885]
[1761316966189,5.24249116,190.75,190.68,5.2443885]
[1761316966387,37.42,190.74,190.69,8.69254288]
[1761316966695,46.10254288,190.74,190.68,13.22693138]
[1761316968108,51.34528423,190.74,190.68,13.22693138]
[1761316968787,13.92528423,190.74,190.68,13.22693138]
[1761316969003,37.4,190.73,190.68,13.22693138]
[1761316969205,37.4,190.73,190.69,8.69254288]
[1761316969803,37.4,190.73,190.7,0.67]
[1761316971005,37.4,190.73,190.71,5.24356352]
[1761316971390,37.4,190.73,190.71,5.91356352]
[1761316971699,37.4,190.73,190.71,5.24356352]
[1761316972304,38.08,190.73,190.69,5.24411348]
[1761316973309,37.4,190.73,190.69,5.91411348]
[1761316973684,37.4,190.73,190.69,13.89665636]
[1761316973891,37.4,190.73,190.7,5.91362951]
[1761316974787,37.4,190.73,190.7,5.24362951]
[1761316976104,37.4,190.73,190.68,13.8967468]
[1761316976312,38.08,190.73,190.68,13.8967468]
[1761316977413,37.4,190.73,190.69,0.72]
[1761316978212,37.4,190.73,190.7,5.24383848]
[1761316978414,37.4,190.73,190.7,5.96383848]
[1761316978708,37.38,190.72,190.7,5.24383848]
[1761316978915,9.51798704,190.75,190.7,5.24383848]
[1761316979116,37.38,190.72,190.7,5.24383848]
[1761316979287,37.38,190.72,190.69,5.24411348]
[1761316979488,37.38,190.72,190.69,5.96411348]
[1761316979899,5.94282972,190.74,190.69,9.53957196]
[1761316980510,37.38,190.73,190.69,9.53957196]
[1761316981015,37.38,190.73,190.7,0.72]
[1761316981214,37.38,190.73,190.71,5.24356352]
[1761316981434,37.38,190.73,190.71,8.819022]
[1761316981716,116.4034761,190.79,190.72,0.72]
[1761316981717,103.3,190.79,190.72,0.72]
[1761316981922,38.08,190.78,190.74,3.57545848]
[1761316982108,0.7,190.83,190.77,3.57545848]
[1761316982417,37.58,190.81,190.8,3.57545848]
[1761316982712,37.58,190.81,190.75,22.88]
[1761316982713,37.58,190.81,190.78,4.29545848]
[1761316982895,37.58,190.81,190.79,0.72]
[1761316983093,37.58,190.81,190.79,4.29545848]
[1761316983409,0.2,190.81,190.8,8.81654862]
[1761316983618,0.2,190.81,190.8,9.53654862]
[1761316984819,0.2,190.81,190.8,13.91767808]
[1761316987209,0.2,190.81,190.8,5.96109014]
[1761316987415,0.2,190.81,190.8,13.91767808]
[1761316989626,0.2,190.81,190.8,24.79415329]
[1761316989839,1e-08,190.81,190.8,24.79415329]
[1761316994537,1e-08,190.81,190.8,13.91767808]
[1761316994717,1e-08,190.81,190.8,24.79415329]
[1761316998137,1e-08,190.81,190.8,47.67415329]
[1761316998337,1e-08,190.81,190.8,28.84109014]
[1761316998521,1e-08,190.81,190.8,36.79767808]
[1761316998713,1e-08,190.81,190.8,36.07767808]
[1761316998912,1e-08,190.81,190.8,13.19767808]
[1761317000537,1e-08,190.81,190.8,36.07767808]
[1761317000712,0.69000001,190.81,190.77,22.88]
[1761317000914,0.69000001,190.81,190.78,7.95658794]
[1761317001516,0.69000001,190.81,190.77,21.06131517]
[1761317001925,0.69000001,190.81,190.78,7.95658794]
[1761317002230,0.69000001,190.81,190.79,5.24136485]
[1761317002743,1e-08,190.81,190.79,5.24136485]
[1761317002947,1e-08,190.81,190.79,13.19795279]
[1761317003126,1e-08,190.81,190.8,8.67658794]
[1761317003316,1e-08,190.81,190.8,19.55306315]
[1761317004262,1e-08,190.81,190.8,24.79415329]
[1761317004815,0.2,190.85,190.84,33.75647521]
[1761317005035,0.2,190.85,190.84,36.04020507]
[1761317005227,0.2,190.85,190.84,36.76020507]
[1761317006222,0.2,190.85,190.84,42.00019668]
[1761317006741,0.2,190.85,190.84,33.35460322]
[1761317007114,0.2,190.85,190.84,34.07460322]
[1761317009717,0.2,190.85,190.84,44.95107843]
[1761317010725,0.2,190.86,190.84,44.95107843]
[1761317010928,0.2,190.86,190.85,16.83108682]
[1761317011748,0.2,190.86,190.85,22.07080387]
[1761317013028,1e-08,190.86,190.85,64.58541548]
[1761317015147,1e-08,190.86,190.85,59.35080387]
[1761317015538,1e-08,190.86,190.85,64.58541548]
[1761317015852,1e-08,190.86,190.85,59.35080387]
[1761317017152,1e-08,190.86,190.85,22.07080387]
[1761317017534,1e-08,190.86,190.85,21.35080387]
[1761317017751,1e-08,190.86,190.85,5.23971705]
[1761317018045,1e-08,190.86,190.85,10.47432866]
[1761317019959,1e-08,190.86,190.85,11.19432866]
[1761317020143,1e-08,190.86,190.85,5.95971705]
[1761317020347,1e-08,190.86,190.85,11.19432866]
[1761317021555,1e-08,190.86,190.85,10.47432866]
[1761317021934,1e-08,190.86,190.85,11.19432866]
[1761317023934,0.69000001,190.86,190.85,10.47432866]
[1761317024361,0.69000001,190.86,190.84,22.88]
[1761317024673,0.69000001,190.86,190.81,5.24076833]
[1761317024674,5.23461161,190.85,190.81,5.24076833]
[1761317024835,0.69,190.84,190.81,5.24076833]
[1761317025038,0.69,190.84,190.79,5.23461161]
[1761317025039,0.69,190.84,190.79,5.24136485]
[1761317025267,5.92461161,190.84,190.79,5.24136485]
[1761317025468,0.69,190.84,190.8,5.23461161]
[1761317025642,0.69,190.83,190.8,5.23461161]
[1761317026052,0.69000001,190.86,190.82,5.23461161]
[1761317026660,0.69000001,190.86,190.84,5.23461161]
[1761317026661,1e-08,190.86,190.84,5.23461161]
[1761317026847,1e-08,190.86,190.84,2.28452869]
[1761317027044,0.69000001,190.86,190.84,2.28452869]
[1761317027376,0.69000001,190.86,190.83,2.28452869]
[1761317027869,0.69000001,190.86,190.84,2.28452869]
[1761317028059,0.69000001,190.86,190.81,19.06285414]
[1761317028262,0.69000001,190.86,190.84,2.28452869]
[1761317028467,1e-08,190.86,190.84,2.28452869]
[1761317028668,1e-08,190.86,190.85,2.28452869]
[1761317028982,1e-08,190.86,190.85,3.00452869]
[1761317030268,1e-08,190.86,190.85,19.12072095]
[1761317032264,1e-08,190.86,190.85,5.95971705]
[1761317032470,1e-08,190.86,190.85,7.52424574]
[1761317032672,1e-08,190.86,190.85,19.12072095]
[1761317040684,1e-08,190.86,190.85,18.40072095]
[1761317041002,1e-08,190.86,190.85,7.52424574]
[1761317041304,0.72000001,190.86,190.85,5.23971705]
[1761317041897,1e-08,190.86,190.85,5.23971705]
[1761317042863,1e-08,190.86,190.85,7.52424574]
[1761317044479,1e-08,190.86,190.85,7.42424574]
[1761317045368,1e-08,190.86,190.85,5.13971705]
[1761317045568,0.72000001,190.86,190.85,5.13971705]
[1761317045787,0.72000001,190.86,190.79,10.87647521]
[1761317046089,0.72000001,190.86,190.82,2.28452869]
[1761317046400,0.72000001,190.86,190.81,25.16452869]
[1761317046563,0.72000001,190.86,190.81,2.28452869]
[1761317046990,0.72000001,190.86,190.82,2.28452869]
[1761317047174,0.72000001,190.86,190.83,2.28452869]
[1761317047376,1e-08,190.86,190.85,5.23971705]
[1761317047590,1e-08,190.86,190.85,7.52424574]
[1761317047787,0.72000001,190.86,190.85,5.23971705]
[1761317047982,1e-08,190.86,190.85,5.23971705]
[1761317049274,0.72000001,190.86,190.85,5.23971705]
[1761317049861,1e-08,190.86,190.85,5.23971705]
[1761317050075,1e-08,190.86,190.85,7.52424574]
[1761317051099,0.72000001,190.86,190.85,5.23971705]
[1761317052069,0.72000001,190.86,190.83,5.2402662]
[1761317052391,1e-08,190.86,190.84,2.28452869]
[1761317052982,1e-08,190.86,190.85,2.28452869]
[1761317053609,1e-08,190.86,190.85,7.52424574]
[1761317054099,1e-08,190.86,190.85,19.06072095]
[1761317055273,0.2,190.89,190.88,33.75647521]
[1761317055473,0.2,190.89,190.88,41.27989744]
[1761317055698,0.2,190.89,190.88,41.93989744]
[1761317057073,0.2,190.89,190.88,39.65536875]
[1761317057277,0.2,190.89,190.88,41.93989744]
[1761317059188,0.2,190.89,190.88,28.11889354]
[1761317059390,0.2,190.89,190.88,30.40342223]
[1761317059778,0.2,190.89,190.88,5.23889354]
[1761317060396,0.2,190.89,190.88,7.52342223]
[1761317061990,0.2,190.89,190.86,10.87647521]
[1761317062189,0.92,190.89,190.86,5.23917946]
[1761317062687,0.72,190.88,190.86,5.23917946]
[1761317064088,0.72,190.88,190.85,22.88]
[1761317064806,0.2,190.89,190.85,22.88]
[1761317065006,0.2,190.89,190.87,2.28452869]
[1761317066000,0.2,190.89,190.87,7.52361996]
[1761317066200,0.92,190.89,190.87,7.52361996]
[1761317066712,0.92,190.89,190.87,8.80775885]
[1761317067096,0.92,190.89,190.87,5.23909127]
[1761317067501,0.2,190.89,190.88,3.56866758]
[1761317067692,0.2,190.89,190.88,15.15514279]
[1761317068318,0.2,190.89,190.88,52.31514279]
[1761317068816,0.92,190.89,190.87,5.23909127]
[1761317069208,0.72,190.88,190.87,5.23909127]
[1761317070022,0.2,190.89,190.87,8.80775885]
[1761317070321,0.2,190.89,190.87,5.23909127]
[1761317072336,0.2,190.89,190.86,18.33804882]
[1761317072509,0.2,190.89,190.86,19.04804882]
[1761317073021,0.2,190.89,190.86,21.9067164]
[1761317073326,0.2,190.89,190.88,14.44514279]
[1761317073530,0.2,190.89,190.88,11.58647521]
[1761317073833,0.2,190.89,190.88,14.44514279]
[1761317074524,0.2,190.89,190.86,36.6886063]
[1761317074734,0.2,190.89,190.88,26.44866758]
[1761317075722,0.2,190.89,190.88,31.68756112]
[1761317076127,0.2,190.89,190.88,28.11889354]
[1761317076312,0.2,190.89,190.88,31.68756112]
[1761317078432,0.92,190.89,190.87,5.23909993]
[1761317078927,0.72,190.88,190.87,5.23909993]
[1761317079232,0.72,190.88,190.86,8.80804953]
[1761317079445,0.72,190.88,190.86,5.23938195]
[1761317079843,0.2,190.89,190.86,5.23938195]
[1761317080025,0.92,190.89,190.86,5.23938195]
[1761317080336,0.2,190.89,190.86,5.23938195]
[1761317080640,0.92,190.89,190.86,5.23938195]
[1761317080851,0.92,190.89,190.86,8.80804953]
[1761317081509,0.2,190.89,190.86,5.23938195]
[1761317081727,0.72,190.88,190.86,8.80804953]
[1761317081935,0.92,190.89,190.86,8.80804953]
[1761317082115,0.92,190.89,190.85,22.88]
[1761317082315,0.92,190.89,190.86,3.56866758]
[1761317082540,0.2,190.89,190.86,3.56866758]
[1761317082838,0.2,190.89,190.87,3.56866758]
[1761317083151,0.2,190.89,190.85,23.59]
[1761317083451,0.2,190.89,190.87,3.56866758]
[1761317083813,0.2,190.89,190.84,18.33929052]
[1761317083814,0.92,190.89,190.84,18.33929052]
[1761317084041,0.92,190.89,190.85,3.56866758]
[1761317084246,0.72,190.88,190.86,5.23944252]
[1761317084426,0.72,190.88,190.86,8.8081101]
[1761317084942,0.2,190.89,190.86,5.23944252]
[1761317085240,0.92,190.89,190.86,8.8081101]
[1761317086237,0.2,190.91,190.86,8.8081101]
[1761317086741,0.2,190.91,190.86,22.6167164]
[1761317087111,0.2,190.91,190.86,18.33804882]
[1761317087316,3.76866758,190.91,190.86,21.9067164]
[1761317087621,0.2,190.91,190.87,4.27866758]
[1761317088127,0.2,190.91,190.9,5.23834468]
[1761317089317,0.2,190.91,190.89,5.2386191]
[1761317091313,0.2,190.91,190.89,9.45728668]
[1761317091721,0.2,190.91,190.89,8.80728668]
[1761317091924,0.2,190.91,190.89,5.2386191]
[1761317093238,0.2,190.91,190.89,9.45728668]
[1761317093830,0.2,190.91,190.89,8.80728668]
[1761317094015,0.2,190.91,190.9,0.65]
[1761317094215,0.2,190.91,190.9,32.33701226]
[1761317094618,0.2,190.91,190.9,5.23834468]
[1761317094846,0.2,190.91,190.9,8.80701226]
[1761317095042,0.2,190.91,190.9,9.45701226]
[1761317095621,0.2,190.91,190.9,32.33701226]
[1761317096337,0.2,190.91,190.9,9.45701226]
[1761317096534,0.2,190.91,190.9,43.21348747]
[1761317098345,0.7,190.91,190.9,28.11834468]
[1761317098648,0.2,190.91,190.88,22.88]
[1761317098837,0.2,190.91,190.89,4.28866758]
[1761317099054,0.2,190.91,190.9,3.56866758]
[1761317099639,0.2,190.91,190.89,3.56866758]
[1761317099844,0.2,190.91,190.9,3.56866758]
[1761317100530,0.2,190.91,190.9,8.80701226]
[1761317100850,0.2,190.94,190.93,33.75647521]
[1761317101039,0.2,190.94,190.93,37.32514279]
[1761317101347,0.2,190.94,190.93,3.56866758]
[1761317101523,0.2,190.94,190.92,3.56866758]
[1761317102439,0.2,190.94,190.93,3.56866758]
[1761317102636,0.2,190.94,190.92,8.80646351]
[1761317102837,0.2,190.94,190.92,5.23779593]
[1761317103036,0.2,190.94,190.92,9.52646351]
[1761317103442,0.2,190.94,190.93,3.56866758]
[1761317104155,0.2,190.94,190.93,15.16514279]
[1761317104536,0.2,190.94,190.93,20.40266439]
[1761317104537,1e-08,190.94,190.93,20.40266439]
[1761317105155,1e-08,190.94,190.93,8.80618918]
[1761317105628,1e-08,190.94,190.93,9.52618918]
[1761317106432,1e-08,190.94,190.9,23.6]
[1761317106629,1e-08,190.94,190.91,0.72]
[1761317106849,1e-08,190.94,190.91,3.56866758]
[1761317107157,1e-08,190.94,190.91,4.28866758]
[1761317107450,1e-08,190.94,190.91,0.72]
[1761317107659,1e-08,190.94,190.92,3.56866758]
[1761317108031,1e-08,190.94,190.93,0.72]
[1761317108534,1e-08,190.94,190.93,5.9575216]
[1761317108739,1e-08,190.94,190.93,8.80618918]
[1761317109251,1e-08,190.94,190.93,9.52618918]
[1761317109464,1e-08,190.94,190.93,8.80618918]
[1761317109838,1e-08,190.94,190.93,9.52618918]
[1761317110038,1e-08,190.94,190.93,43.28266439]
[1761317113951,1e-08,190.94,190.93,22.88]
[1761317114152,1e-08,190.94,190.93,28.1175216]
[1761317114459,0.50000001,190.94,190.92,5.2377366]
[1761317115066,1e-08,190.94,190.92,5.2377366]
[1761317115244,1e-08,190.94,190.93,4.28866758]
[1761317115450,1e-08,190.94,190.93,15.16514279]
[1761317115644,1e-08,190.94,190.93,11.59647521]
[1761317115852,1e-08,190.94,190.93,15.16514279]
[1761317116753,1e-08,190.94,190.93,4.28866758]
[1761317117255,1e-08,190.94,190.93,20.40266439]
[1761317117643,1e-08,190.94,190.93,5.2375216]
[1761317117845,1e-08,190.94,190.93,32.40618918]
[1761317118470,1e-08,190.94,190.93,31.68618918]
[1761317118776,1e-08,190.94,190.93,32.40618918]
[1761317121066,1e-08,190.94,190.93,43.28266439]
[1761317121957,1e-08,190.94,190.93,80.34266439]
[1761317122468,1e-08,190.94,190.93,76.77399681]
[1761317122671,1e-08,190.94,190.93,57.46266439]
[1761317124870,1e-08,190.94,190.93,59.55871595]
[1761317125055,1e-08,190.94,190.93,55.99004837]
[1761317125378,1e-08,190.94,190.93,59.55871595]
[1761317125866,1e-08,190.94,190.93,42.2975216]
[1761317126074,1e-08,190.94,190.93,45.86618918]
[1761317126278,1e-08,190.94,190.93,46.57618918]
[1761317126658,1e-08,190.94,190.93,31.68618918]
[1761317126858,1e-08,190.94,190.93,8.80618918]
[1761317127158,1e-08,190.94,190.93,31.68618918]
[1761317128160,1e-08,190.94,190.93,32.39618918]
[1761317128474,1e-08,190.94,190.93,31.68618918]
[1761317128980,0.50000001,190.94,190.9,3.76866758]
[1761317129157,0.50000001,190.94,190.86,4.39884387]
[1761317129158,2.78238856,190.94,190.89,2.28238855]
[1761317129577,2.78238856,190.94,190.88,2.28238855]
[1761317129578,0.5,190.93,190.88,2.28238855]
[1761317129762,0.5,190.93,190.87,13.09787059]
[1761317129964,0.5,190.93,190.88,2.28238855]
[1761317130494,2.78238855,190.93,190.87,5.23916802]
[1761317130779,2.78238855,190.93,190.87,30.40155657]
[1761317131087,0.5,190.92,190.87,7.52155657]
[1761317131381,2.78238855,190.92,190.87,7.52155657]
[1761317131592,0.5,190.92,190.88,2.28238855]
[1761317132076,0.5,190.92,190.89,5.2386191]
[1761317132263,2.78238856,190.94,190.89,7.52100765]
[1761317132584,1e-08,190.94,190.92,2.28238855]
[1761317132757,1e-08,190.94,190.9,0.71]
[1761317132962,1e-08,190.94,190.92,2.28238855]
[1761317133679,1e-08,190.94,190.93,5.2375216]
[1761317133858,1e-08,190.94,190.92,7.52013705]
[1761317134183,1e-08,190.94,190.92,5.2377485]
[1761317134385,0.5,190.93,190.89,22.88]
[1761317134679,0.5,190.93,190.89,2.28238855]
[1761317135258,2.28238855,190.9,190.84,5.23999161]
[1761317135500,37.54,190.93,190.8,4.39932991]
[1761317135788,5.73779593,190.92,190.8,36.03886376]
[1761317136082,2.28238855,190.85,190.8,5.24106251]
[1761317136292,2.28238855,190.83,190.8,5.24106251]
[1761317136461,2.78238855,190.84,190.8,28.12106251]
[1761317136663,0.5,190.86,190.8,7.52345106]
[1761317136885,2.78238855,190.86,190.81,2.28238855]
[1761317137189,2.78238855,190.86,190.8,5.24106251]
[1761317137368,2.78238855,190.86,190.8,7.52345106]
[1761317137566,0.5,190.85,190.8,7.52345106]
[1761317138383,2.28238855,190.86,190.8,21.33617642]
[1761317138683,5.23849888,190.9,190.82,2.28238855]
[1761317138874,2.28238855,190.87,190.82,2.28238855]
[1761317139071,2.28238855,190.88,190.82,2.28238855]
[1761317139282,1e-08,190.94,190.85,2.28238855]
[1761317139592,2.28238855,190.9,190.83,23.59]
[1761317139766,2.28238855,190.9,190.84,18.33997065]
[1761317140102,2.78238855,190.91,190.84,19.04997065]
[1761317140261,37.06,190.93,190.87,2.28238855]
[1761317140262,2.78238855,190.93,190.87,2.28238855]
[1761317140463,0.5,190.93,190.89,2.28238855]
[1761317140663,1e-08,190.94,190.89,2.28238855]
[1761317140886,1e-08,190.94,190.87,0.71]
[1761317140887,2.28238855,190.92,190.87,2.28238855]
[1761317141273,0.5,190.91,190.87,2.28238855]
[1761317141774,0.5,190.91,190.88,5.23889354]
[1761317141975,0.5,190.91,190.86,7.52158638]
[1761317142177,2.78238855,190.91,190.86,5.23919783]
[1761317142358,2.28238855,190.9,190.86,5.23919783]
[1761317142562,2.28238855,190.91,190.86,7.52158638]
[1761317142763,0.5,190.91,190.86,20.62019268]
[1761317143369,0.5,190.91,190.87,2.28238855]
[1761317143777,0.5,190.91,190.88,5.23889354]
[1761317143977,0.5,190.93,190.89,2.28238855]
[1761317144386,1e-08,190.94,190.9,2.28238855]
[1761317144674,0.50000001,190.94,190.9,2.28238855]
[1761317145181,0.5,190.93,190.88,20.61851595]
[1761317145384,0.5,190.93,190.88,5.23889354]
[1761317145583,2.78238855,190.93,190.88,5.23889354]
[1761317145895,1e-08,190.94,190.89,2.99238855]
[1761317146077,1e-08,190.94,190.9,2.28238855]
[1761317146799,0.5,190.93,190.89,2.28238855]
[1761317147297,1e-08,190.94,190.9,2.28238855]
[1761317147499,1e-08,190.94,190.91,2.28238855]
[1761317147994,1e-08,190.94,190.92,5.94779593]
[1761317148212,1e-08,190.94,190.92,7.52018448]
[1761317148583,1e-08,190.94,190.92,5.23779593]
[1761317148782,1e-08,190.94,190.92,2.28238855]
[1761317148979,1e-08,190.94,190.91,18.33319492]
[1761317149397,1e-08,190.94,190.91,20.61558347]
[1761317149788,0.50000001,190.94,190.88,22.88]
[1761317149979,1e-08,190.94,190.9,2.28238855]
[1761317150183,0.50000001,190.94,190.91,2.28238855]
[1761317150487,1e-08,190.94,190.91,2.28238855]
[1761317151304,1e-08,190.94,190.92,3.00238855]
[1761317151486,1e-08,190.94,190.91,2.28238855]
[1761317151810,0.50000001,190.94,190.91,2.28238855]
[1761317151984,0.50000001,190.94,190.89,19.05516685]
[1761317152187,0.50000001,190.94,190.91,2.28238855]
[1761317152381,0.50000001,190.94,190.89,19.05516685]
[1761317152583,0.50000001,190.94,190.9,2.28238855]
[1761317152887,0.50000001,190.94,190.89,20.6175554]
[1761317153388,2.78238856,190.94,190.89,5.2386191]
[1761317153586,2.28238855,190.93,190.89,5.2386191]
[1761317153894,2.78238855,190.93,190.89,5.2386191]
[1761317154127,0.5,190.92,190.88,5.23889354]
[1761317154297,2.78238855,190.92,190.88,5.23889354]
[1761317154491,2.78238855,190.91,190.85,5.23971705]
[1761317154711,2.28238855,190.89,190.85,5.23971705]
[1761317155119,2.28238855,190.9,190.85,5.23971705]
[1761317155416,2.78238855,190.9,190.85,5.23971705]
[1761317155601,0.5,190.89,190.85,5.23971705]
[1761317156220,0.5,190.9,190.85,19.05900968]
[1761317156719,39.82238855,190.92,190.86,0.7]
[1761317157026,0.5,190.91,190.85,5.23971705]
[1761317157185,2.28238855,190.88,190.83,5.24005693]
[1761317157507,2.28238855,190.87,190.83,5.24005693]